bitfinex/quotes_ETHUSD_20230902
["timestamp","ask_amount","ask_price","bid_price","bid_amount"]
[1693680836623,0.64192394,1631.9,1631.7,3.90561008]
[1693680836891,0.64192394,1631.9,1631.7,6.41531008]
[1693680838301,4.26590068,1632.0,1631.7,6.41531008]
[1693680838452,1.60478973,1632.0,1631.7,6.41531008]
[1693680838652,2.66922989,1632.0,1631.7,6.41531008]
[1693680838851,4.26589206,1632.0,1631.8,0.64153101]
[1693680839068,0.64192394,1632.0,1631.9,3.08185404]
[1693680839347,2.23854015,1632.0,1631.9,3.08185404]
[1693680839583,3.30295034,1632.0,1631.9,3.08185404]
[1693680840758,1.70633475,1632.0,1631.9,3.08185404]
[1693680842899,3.71238973,1632.1,1631.9,3.08185404]
[1693680843393,2.74952394,1632.1,1631.9,3.08185404]
[1693680846259,2.74952394,1632.1,1631.9,5.80705404]
[1693680846458,2.4122936,1632.0,1631.9,5.80705404]
[1693680846858,2.74952394,1632.1,1631.9,5.80705404]
[1693680847276,3.71238973,1632.1,1631.9,5.80705404]
[1693680847477,2.4122936,1632.0,1631.9,5.80705404]
[1693680847679,3.71238973,1632.1,1631.9,5.80705404]
[1693680848376,1.06440721,1632.0,1631.9,5.80705404]
[1693680848822,1.70632877,1632.0,1631.9,5.80705404]
[1693680849381,4.11862237,1632.0,1631.9,3.08185404]
[1693680849583,5.71526713,1632.0,1631.9,3.08185404]
[1693680851582,5.71526713,1632.0,1631.7,3.13475535]
[1693680851792,4.01708333,1632.0,1631.8,3.08185404]
[1693680854129,1.60478973,1632.0,1631.8,3.08185404]
[1693680854422,5.08153713,1632.0,1631.8,3.08185404]
[1693680854631,4.01708333,1632.0,1631.8,3.08185404]
[1693680854922,1.064454,1631.9,1631.8,3.08185404]
[1693680855129,1.70637794,1631.9,1631.8,3.08185404]
[1693680855328,3.37515939,1632.0,1631.8,3.08185404]
[1693680855329,4.01708333,1632.0,1631.8,3.08185404]
[1693680855530,3.05421754,1632.0,1631.8,3.08185404]
[1693680861331,4.01708333,1632.0,1631.8,3.08185404]
[1693680862534,1.60478973,1632.0,1631.8,3.08185404]
[1693680862740,0.64192394,1632.0,1631.8,3.70351498]
[1693680862907,0.64192394,1632.1,1631.9,3.0]
[1693680863083,0.64192394,1632.1,1632.0,3.08185404]
[1693680863287,2.23840683,1632.1,1632.0,3.08185404]
[1693680863587,3.30273208,1632.1,1632.0,3.08185404]
[1693680864919,4.26559787,1632.1,1632.0,3.08185404]
[1693680867050,3.62367393,1632.1,1632.0,3.08185404]
[1693680867744,4.26441572,1632.1,1632.0,3.94664944]
[1693680869392,3.62367393,1632.1,1632.0,3.94664944]
[1693680869680,3.30141971,1632.1,1632.0,3.94664944]
[1693680869944,0.64078977,1632.1,1632.0,3.94664944]
[1693680870250,2.23715976,1632.1,1632.0,3.94664944]
[1693680871048,2.2371646,1632.1,1632.0,6.94664944]
[1693680873850,3.19834926,1632.1,1632.0,6.94664944]
[1693680874339,4.26260125,1632.1,1632.0,6.94664944]
[1693680874509,1.60197443,1632.1,1632.0,6.94664944]
[1693680875341,3.62181148,1632.1,1632.0,6.94664944]
[1693680875539,0.96118466,1632.1,1632.0,6.94664944]
[1693680879355,2.24276421,1632.1,1632.0,6.94664944]
[1693680880315,4.90339103,1632.1,1632.0,6.94664944]
[1693680880517,2.24276421,1632.1,1632.0,6.94664944]
[1693680882430,3.62181148,1632.1,1632.0,6.94664944]
[1693680882754,0.96118466,1632.1,1632.0,6.94664944]
[1693680882971,3.62181148,1632.1,1632.0,6.94664944]
[1693680883132,0.96118466,1632.1,1632.0,6.94664944]
[1693680884356,3.62181148,1632.1,1632.0,6.94664944]
[1693680884516,0.96118466,1632.1,1632.0,6.94664944]
[1693680884723,3.62181148,1632.1,1632.0,6.94664944]
[1693680886374,4.2634255,1632.1,1632.0,6.94664944]
[1693680887376,3.30224084,1632.1,1632.0,6.94664944]
[1693680888706,1.70586601,1632.1,1632.0,6.94664944]
[1693680888864,3.30220572,1632.1,1632.0,6.94664944]
[1693680889354,1.70586601,1632.1,1632.0,6.94664944]
[1693680890470,3.72599868,1632.2,1632.0,6.94664944]
[1693680890673,3.72599868,1632.2,1632.1,3.0]
[1693680890879,3.72599868,1632.2,1632.1,6.08185404]
[1693680891087,6.38657499,1632.2,1632.1,6.08185404]
[1693680891273,5.42539033,1632.2,1632.1,6.08185404]
[1693680892492,3.82904454,1632.2,1632.1,6.08185404]
[1693680893395,2.1232,1632.2,1632.1,6.08185404]
[1693680897244,2.1232,1632.2,1632.1,6.77651898]
[1693680900006,2.1753,1632.4,1632.3,0.5877064]
[1693680900206,0.64161402,1632.6,1632.3,3.66956044]
[1693680900404,2.66678946,1632.7,1632.4,6.08185404]
[1693680900629,1.70559303,1632.6,1632.4,6.08185404]
[1693680900844,2.89411402,1632.6,1632.5,0.6081854]
[1693680901046,2.89411402,1632.6,1632.5,3.69003944]
[1693680901222,2.89411402,1632.6,1632.5,6.69003944]
[1693680901423,5.55405558,1632.6,1632.5,6.69003944]
[1693680902325,3.95809078,1632.6,1632.5,6.69003944]
[1693680904761,5.55407019,1632.6,1632.5,6.69003944]
[1693680905814,1.70559078,1632.6,1632.5,7.27774584]
[1693680906048,0.96118466,1632.7,1632.5,8.84574584]
[1693680906049,0.64161402,1632.7,1632.5,8.84574584]
[1693680906250,0.64161402,1632.7,1632.6,6.96642862]
[1693680906455,4.26256748,1632.7,1632.6,6.96642862]
[1693680906628,6.46086748,1632.7,1632.6,6.96642862]
[1693680906829,5.81925346,1632.7,1632.6,6.96642862]
[1693680907353,5.81925346,1632.7,1632.6,6.08185404]
[1693680909887,7.10083301,1632.7,1632.6,6.08185404]
[1693680910175,5.81925346,1632.7,1632.6,6.08185404]
[1693680910540,7.10083301,1632.7,1632.6,6.08185404]
[1693680910879,7.10083301,1632.7,1632.6,5.44348797]
[1693680913789,7.10093107,1632.7,1632.6,5.44348797]
[1693680918803,5.81935152,1632.7,1632.6,5.44348797]
[1693680929742,2.1983,1632.7,1632.6,5.44348797]
[1693680930035,4.22297068,1632.7,1632.6,5.44348797]
[1693680930222,5.81884746,1632.7,1632.6,5.44348797]
[1693680933237,7.09985124,1632.7,1632.6,5.44348797]
[1693680938758,9.22768543,1632.7,1632.6,5.44348797]
[1693680938911,8.2669326,1632.7,1632.6,5.44348797]
[1693680939857,8.2669163,1632.7,1632.6,5.44348797]
[1693680940245,7.1010542,1632.7,1632.6,5.44348797]
[1693680940460,8.26691668,1632.7,1632.6,5.44348797]
[1693680940786,8.26692009,1632.7,1632.6,5.44348797]
[1693680941539,7.10127155,1632.7,1632.6,5.44348797]
[1693680941764,8.26689724,1632.7,1632.6,5.44348797]
[1693680942876,8.26689743,1632.7,1632.6,5.44348797]
[1693680944986,9.86815216,1632.7,1632.6,5.44348797]
[1693680945750,8.58714838,1632.7,1632.6,5.44348797]
[1693680946885,2.1983,1632.7,1632.6,5.44348797]
[1693680947041,8.59288532,1632.7,1632.6,5.44348797]
[1693680947890,9.87854473,1632.7,1632.6,5.44348797]
[1693680949893,8.27149146,1632.7,1632.6,5.44348797]
[1693680952823,7.10809636,1632.7,1632.6,5.44348797]
[1693680953177,7.10809636,1632.7,1632.6,5.24348797]
[1693680953178,5.82243695,1632.7,1632.6,5.24348797]
[1693680953385,7.10809636,1632.7,1632.6,5.24348797]
[1693680954017,5.82243695,1632.7,1632.6,5.24348797]
[1693680954876,6.46534823,1632.7,1632.6,5.24348797]
[1693680955572,3.30265131,1632.7,1632.6,5.24348797]
[1693680955772,2.2387553,1632.7,1632.6,5.87636848]
[1693680956017,3.30265131,1632.7,1632.6,5.87636848]
[1693680959343,3.30259601,1632.7,1632.6,5.87636848]
[1693680959649,1.70680729,1632.7,1632.6,5.87636848]
[1693680959944,3.30259905,1632.7,1632.6,5.87636848]
[1693680960330,1.70680729,1632.7,1632.6,5.87636848]
[1693680960845,3.7404082,1632.8,1632.6,5.87636848]
[1693680961018,3.7404082,1632.8,1632.7,3.08185404]
[1693680961222,5.43556718,1632.8,1632.7,6.08185404]
[1693680961550,6.3999641,1632.8,1632.7,6.08185404]
[1693680962250,5.43556718,1632.8,1632.7,6.08185404]
[1693680962565,6.3999641,1632.8,1632.7,6.08185404]
[1693680970476,6.52561517,1632.8,1632.7,6.08185404]
[1693680970613,10.5427323,1632.8,1632.7,3.08185404]
[1693680970813,10.5427323,1632.8,1632.5,0.4976107]
[1693680970814,12.14978557,1632.8,1632.5,0.4976107]
[1693680971019,1.60699262,1632.6,1632.5,3.08185404]
[1693680971249,4.3917693,1632.6,1632.5,3.08185404]
[1693680975532,3.62375147,1632.6,1632.5,3.08185404]
[1693680975678,4.26618635,1632.6,1632.5,3.08185404]
[1693680975876,2.67045281,1632.6,1632.5,3.08185404]
[1693680976186,4.26618635,1632.6,1632.5,3.08185404]
[1693680976999,1.60663045,1632.6,1632.5,3.08185404]
[1693680977300,4.26618635,1632.6,1632.5,3.08185404]
[1693680977630,1.60663045,1632.6,1632.5,3.08185404]
[1693680977788,4.26618635,1632.6,1632.5,3.08185404]
[1693680977991,0.64243488,1632.6,1632.5,3.08185404]
[1693680978290,3.20236399,1632.6,1632.5,3.08185404]
[1693680979139,2.23816842,1632.6,1632.5,3.08185404]
[1693680979819,3.20236399,1632.6,1632.5,3.08185404]
[1693680980224,2.23816842,1632.6,1632.5,3.08185404]
[1693680980437,5.37556399,1632.6,1632.5,3.08185404]
[1693680980622,5.47519078,1632.6,1632.5,3.08185404]
[1693680982134,6.43938635,1632.6,1632.5,3.08185404]
[1693680982343,5.47519078,1632.6,1632.5,3.08185404]
[1693680983449,6.56945605,1632.6,1632.5,3.08185404]
[1693680983606,6.56945605,1632.6,1632.5,2.82685404]
[1693680983803,6.56945605,1632.6,1632.5,2.79685404]
[1693680994075,7.21122242,1632.6,1632.5,2.79685404]
[1693680996076,7.21119711,1632.6,1632.5,2.79685404]
[1693681003880,6.56945605,1632.6,1632.5,2.79685404]
[1693681004894,7.21125015,1632.6,1632.5,2.79685404]
[1693681005100,6.43874557,1632.6,1632.5,2.79685404]
[1693681005799,5.79695147,1632.6,1632.5,2.79685404]
[1693681012798,7.08261088,1632.6,1632.5,2.79685404]
[1693681013600,8.24654136,1632.6,1632.5,2.79685404]
[1693681013897,7.08208639,1632.6,1632.5,2.79685404]
[1693681014084,5.79642698,1632.6,1632.5,2.79685404]
[1693681015626,7.08208639,1632.6,1632.5,2.79685404]
[1693681016630,8.24644854,1632.6,1632.5,2.79685404]
[1693681017221,7.08282719,1632.6,1632.5,2.79685404]
[1693681017405,8.2464484,1632.6,1632.5,2.79685404]
[1693681018226,7.08283679,1632.6,1632.5,2.79685404]
[1693681018601,8.24644748,1632.6,1632.5,2.79685404]
[1693681018926,7.08284295,1632.6,1632.5,2.79685404]
[1693681019804,8.24644536,1632.6,1632.5,2.79685404]
[1693681025439,9.62982458,1632.6,1632.3,3.17232547]
[1693681025611,0.64301083,1632.4,1632.3,6.25417951]
[1693681025801,3.30256673,1632.4,1632.3,6.25417951]
[1693681029973,5.62616673,1632.4,1632.3,6.25417951]
[1693681033868,4.03043319,1632.4,1632.3,6.25417951]
[1693681034043,5.6268921,1632.4,1632.3,6.25417951]
[1693681035266,6.5915554,1632.4,1632.3,6.25417951]
[1693681039035,7.62056207,1632.4,1632.3,6.25417951]
[1693681039241,6.9774532,1632.4,1632.3,3.08185404]
[1693681039450,8.5454532,1632.4,1632.3,3.08185404]
[1693681042081,6.9774532,1632.4,1632.3,3.08185404]
[1693681057513,7.62020933,1632.4,1632.3,3.08185404]
[1693681058120,6.9774532,1632.4,1632.3,3.08185404]
[1693681058914,8.26367094,1632.4,1632.3,3.08185404]
[1693681059216,6.9774532,1632.4,1632.3,3.08185404]
[1693681059379,8.26367094,1632.4,1632.3,3.08185404]
[1693681059714,6.9774532,1632.4,1632.2,2.4676]
[1693681059927,6.41297317,1632.3,1632.2,2.4676]
[1693681060485,8.62257317,1632.3,1632.2,2.4676]
[1693681061533,9.58723647,1632.3,1632.2,2.4676]
[1693681061743,8.62257317,1632.3,1632.2,2.4676]
[1693681065039,9.58723647,1632.3,1632.2,2.4676]
[1693681066653,8.62257317,1632.3,1632.2,2.4676]
[1693681068046,9.58723647,1632.3,1632.2,2.4676]
[1693681075866,8.94448545,1632.3,1632.2,2.4676]
[1693681079874,8.24674013,1632.3,1632.2,2.4676]
[1693681080368,8.24674013,1632.3,1632.1,0.49391853]
[1693681080674,3.3029736,1632.2,1632.0,2.6825]
[1693681080874,3.3029736,1632.2,1632.0,5.76435404]
[1693681083668,0.64279037,1632.1,1632.0,5.76435404]
[1693681083870,1.70686366,1632.1,1632.0,5.76435404]
[1693681085890,1.70686366,1632.1,1632.0,11.94238739]
[1693681086466,3.30329044,1632.1,1632.0,5.76435404]
[1693681089409,1.70686366,1632.1,1632.0,5.76435404]
[1693681090924,4.60594996,1632.1,1632.0,2.6825]
[1693681091084,4.60594996,1632.1,1631.8,6.16013839]
[1693681091085,11.68894909,1632.1,1631.8,6.16013839]
[1693681091287,5.61336208,1632.0,1631.8,9.24199243]
[1693681091472,2.95278033,1632.0,1631.8,9.24199243]
[1693681096555,2.3104,1632.0,1631.8,9.24199243]
[1693681099480,2.3104,1632.0,1631.8,9.24199243]
[1693681099640,6.07412993,1632.1,1631.8,6.24199243]
[1693681099839,2.31419598,1632.0,1631.8,6.24199243]
[1693681100043,3.35989332,1632.0,1631.8,6.24199243]
[1693681110307,3.35905902,1632.0,1631.8,6.24199243]
[1693681128034,4.32137807,1632.0,1631.8,6.24199243]
[1693681129063,3.35905902,1632.0,1631.8,6.24199243]
[1693681129474,4.32137807,1632.0,1631.8,6.24199243]
[1693681130377,1.06438843,1631.9,1631.8,6.24199243]
[1693681131081,4.32137807,1632.0,1631.8,6.24199243]
[1693681131449,1.70593337,1631.9,1631.8,6.24199243]
[1693681134491,3.30251488,1631.9,1631.8,6.24199243]
[1693681136394,4.26483393,1631.9,1631.8,6.24199243]
[1693681137803,3.30251488,1631.9,1631.8,6.24199243]
[1693681138415,3.30251488,1631.9,1631.8,6.86619167]
[1693681138416,4.26483393,1631.9,1631.8,6.86619167]
[1693681138611,0.64154603,1632.0,1631.8,11.43419167]
[1693681138913,0.64154603,1632.0,1631.9,6.08185404]
[1693681139073,0.64154603,1632.1,1631.9,6.08185404]
[1693681139274,0.64154603,1632.1,1632.0,0.6081854]
[1693681139607,1.60386508,1632.2,1632.0,3.69003944]
[1693681139811,1.60386508,1632.2,1632.1,3.08185404]
[1693681142004,0.64154603,1632.2,1632.1,3.08185404]
[1693681143605,1.70577995,1632.2,1632.1,3.08185404]
[1693681143813,1.70577995,1632.2,1632.1,3.71777798]
[1693681144017,0.64154603,1632.2,1632.1,3.71777798]
[1693681146118,1.60386508,1632.3,1632.1,6.71777798]
[1693681146315,1.60386508,1632.3,1632.1,3.71777798]
[1693681146679,3.3020635,1632.3,1632.1,3.71777798]
[1693681146880,3.3020635,1632.3,1632.2,0.3717778]
[1693681147198,3.3020635,1632.3,1632.2,3.45363184]
[1693681152820,1.70575302,1632.3,1632.2,3.45363184]
[1693681156382,1.70575302,1632.3,1632.2,3.08185404]
[1693681157619,1.06420699,1632.3,1632.2,3.08185404]
[1693681158218,1.70575302,1632.3,1632.2,3.08185404]
[1693681158724,1.06420699,1632.3,1632.2,3.08185404]
[1693681159023,6.18605868,1632.4,1632.2,3.08185404]
[1693681159230,6.18605868,1632.4,1632.3,3.08185404]
[1693681159441,8.84656106,1632.4,1632.3,3.08185404]
[1693681165845,7.88424201,1632.4,1632.3,3.08185404]
[1693681166139,8.84656106,1632.4,1632.3,3.08185404]
[1693681166305,7.88424201,1632.4,1632.3,3.08185404]
[1693681166503,8.84656106,1632.4,1632.3,3.08185404]
[1693681170499,8.20501503,1632.4,1632.3,3.08185404]
[1693681181504,9.48810709,1632.4,1632.3,3.08185404]
[1693681183423,10.65414743,1632.4,1632.3,3.08185404]
[1693681184424,12.25801251,1632.4,1632.3,3.08185404]
[1693681194945,10.65414743,1632.4,1632.3,3.08185404]
[1693681195148,12.25801251,1632.4,1632.3,3.08185404]
[1693681200336,12.2007217,1632.4,1632.0,0.4784154]
[1693681200624,0.96394069,1632.1,1632.0,3.08185404]
[1693681201203,5.76514307,1632.1,1632.0,6.17820485]
[1693681201401,6.86821216,1632.1,1631.8,0.48443839]
[1693681201713,1.7068907,1632.0,1631.9,3.08185404]
[1693681201858,3.30338346,1632.0,1631.9,3.08185404]
[1693681203414,3.30338346,1632.0,1631.7,5.5528]
[1693681203415,5.83532415,1632.0,1631.7,5.5528]
[1693681203614,1.70651976,1631.9,1631.8,6.08185404]
[1693681203965,6.11065941,1631.9,1631.7,0.49540991]
[1693681204169,1.568,1631.8,1631.3,5.7321]
[1693681204397,2.4122936,1631.7,1631.4,8.08185404]
[1693681204579,4.5459936,1631.7,1631.4,8.08185404]
[1693681204990,4.5459936,1631.7,1631.4,3.08185404]
[1693681205502,4.5459936,1631.7,1631.5,3.0]
[1693681205817,4.5459936,1631.7,1631.5,6.08185404]
[1693681207810,3.053784,1631.9,1631.6,3.08185404]
[1693681207987,5.282784,1631.9,1631.6,3.08185404]
[1693681208182,4.6412936,1631.9,1631.6,5.70495404]
[1693681218914,2.4122936,1631.9,1631.6,5.70495404]
[1693681220230,2.4122936,1631.9,1631.6,6.1898679]
[1693681220382,2.4122936,1631.9,1631.6,7.16967323]
[1693681226869,3.053784,1631.9,1631.6,7.16967323]
[1693681229960,3.053784,1631.9,1631.6,6.1898679]
[1693681233233,4.01601961,1631.9,1631.6,6.1898679]
[1693681233437,3.053784,1631.9,1631.6,6.1898679]
[1693681233631,3.003784,1631.9,1631.6,6.1898679]
[1693681235943,2.1938,1631.8,1631.6,6.1898679]
[1693681236245,2.1938,1631.8,1631.6,7.16967323]
[1693681240980,3.003784,1631.9,1631.6,7.16967323]
[1693681241187,2.8552904,1631.9,1631.7,3.0]
[1693681241500,2.8552904,1631.9,1631.8,3.08185404]
[1693681241665,3.91969741,1631.9,1631.8,3.08185404]
[1693681241847,5.51630793,1631.9,1631.8,3.08185404]
[1693681244564,6.47854354,1631.9,1631.8,3.08185404]
[1693681245581,5.83705314,1631.9,1631.8,3.08185404]
[1693681247005,5.78705314,1631.9,1631.8,3.08185404]
[1693681247597,6.42949904,1631.9,1631.8,3.08185404]
[1693681247895,5.78705314,1631.9,1631.8,3.08185404]
[1693681248693,6.4295776,1631.9,1631.8,3.08185404]
[1693681248896,1.70686799,1631.9,1631.8,5.25803944]
[1693681249106,1.60476007,1632.0,1631.8,8.25803944]
[1693681249271,4.26556927,1632.0,1631.8,7.97103944]
[1693681249597,0.64252446,1632.0,1631.8,7.97103944]
[1693681249769,3.30333044,1632.0,1631.8,7.97103944]
[1693681251602,1.70684685,1632.0,1631.8,7.97103944]
[1693681251903,0.64252446,1632.0,1631.8,7.97103944]
[1693681252107,1.70684587,1632.0,1631.8,7.97103944]
[1693681257923,0.64248788,1632.0,1631.8,7.97103944]
[1693681258123,1.70680738,1632.0,1631.8,7.97103944]
[1693681259276,6.2754133,1632.1,1631.8,7.97103944]
[1693681259476,1.06431892,1632.0,1631.8,7.36285404]
[1693681259802,1.7068068,1632.0,1631.8,7.36285404]
[1693681260319,6.2754133,1632.1,1631.8,7.36285404]
[1693681260473,1.70680658,1632.0,1631.8,7.86225644]
[1693681261243,6.2754133,1632.1,1631.8,7.86225644]
[1693681265546,2.1584,1632.0,1631.8,7.86225644]
[1693681266299,2.1584,1632.0,1631.8,7.81225644]
[1693681268250,2.1584,1632.0,1631.8,7.81225644]
[1693681269854,2.80088788,1632.0,1631.8,7.81225644]
[1693681275256,2.80088788,1632.0,1631.8,6.24425644]
[1693681278923,1.70684016,1631.9,1631.6,0.48491386]
[1693681279085,1.70684016,1631.8,1631.7,3.08185404]
[1693681279417,3.30354791,1631.8,1631.7,3.08185404]
[1693681279574,5.43224791,1631.8,1631.7,3.08185404]
[1693681282606,6.39597973,1631.8,1631.7,3.08185404]
[1693681282910,7.40030464,1631.8,1631.7,3.08185404]
[1693681283276,6.43657282,1631.8,1631.7,3.08185404]
[1693681287925,4.83986507,1631.8,1631.7,3.08185404]
[1693681293231,4.19737719,1631.8,1631.7,3.08185404]
[1693681293535,4.83986507,1631.8,1631.7,3.08185404]
[1693681293728,4.19737719,1631.8,1631.7,3.08185404]
[1693681294135,3.13302491,1631.8,1631.7,3.08185404]
[1693681300532,6.43684493,1631.8,1631.5,3.50193712]
[1693681300839,2.58590249,1631.7,1631.5,0.50193712]
[1693681301021,2.58590249,1631.7,1631.5,3.0]
[1693681302457,2.2726,1631.7,1631.5,3.0]
[1693681306252,4.6348936,1631.7,1631.5,3.0]
[1693681313697,4.6348936,1631.7,1631.5,3.49842433]
[1693681314996,4.6348936,1631.7,1631.5,0.49842433]
[1693681315198,5.27738148,1631.7,1631.4,2.6165]
[1693681315501,2.2919,1631.6,1631.4,5.69835404]
[1693681323020,3.00478148,1631.7,1631.5,4.64985404]
[1693681327333,0.64248788,1631.7,1631.5,4.64985404]
[1693681327501,3.00478148,1631.7,1631.5,4.64985404]
[1693681333864,0.64248788,1631.7,1631.5,4.64985404]
[1693681334234,3.30373263,1631.7,1631.5,4.64985404]
[1693681334435,1.70698568,1631.7,1631.5,4.64985404]
[1693681334637,0.64248788,1631.7,1631.5,4.64985404]
[1693681335158,3.30373226,1631.7,1631.5,4.64985404]
[1693681335363,0.64248788,1631.7,1631.5,4.64985404]
[1693681335659,1.70698529,1631.7,1631.5,4.64985404]
[1693681335862,0.64248788,1631.7,1631.5,4.64985404]
[1693681336222,3.30373128,1631.7,1631.5,5.13257587]
[1693681336567,0.64248788,1631.7,1631.5,5.13257587]
[1693681336938,3.30373119,1631.7,1631.5,5.13257587]
[1693681337264,3.00478148,1631.7,1631.5,5.13257587]
[1693681339226,5.32428148,1631.7,1631.5,5.13257587]
[1693681350576,5.32428148,1631.7,1631.5,3.56457587]
[1693681350875,6.2880133,1631.7,1631.5,3.56457587]
[1693681365838,6.28932265,1631.7,1631.5,3.56457587]
[1693681368037,1.70753595,1631.6,1631.5,3.56457587]
[1693681368241,3.89603595,1631.6,1631.5,3.56457587]
[1693681369336,5.49285488,1631.6,1631.5,3.56457587]
[1693681373590,3.89603595,1631.6,1631.5,3.56457587]
[1693681373807,1.70753595,1631.6,1631.5,4.33948346]
[1693681380278,1.70753595,1631.6,1631.5,3.56457587]
[1693681380713,3.87503595,1631.6,1631.5,3.56457587]
[1693681380903,5.47186221,1631.6,1631.5,3.56457587]
[1693681381186,5.79336802,1631.6,1631.5,3.56457587]
[1693681383037,5.79336802,1631.6,1631.5,0.48272183]
[1693681383236,6.73753651,1631.6,1631.5,0.48272183]
[1693681383409,6.73753651,1631.6,1631.3,5.05418459]
[1693681383727,3.99892181,1631.5,1631.4,3.08185404]
[1693681387052,3.35602433,1631.5,1631.4,3.08185404]
[1693681387253,2.2915,1631.5,1631.4,3.08185404]
[1693681394362,0.64289748,1631.6,1631.4,3.08185404]
[1693681394537,1.70751962,1631.6,1631.4,5.55215404]
[1693681394877,5.49815004,1631.6,1631.4,5.55215404]
[1693681395160,2.83659748,1631.6,1631.4,5.55215404]
[1693681411301,3.80111491,1631.6,1631.4,5.55215404]
[1693681418712,1.70750841,1631.5,1631.4,5.55215404]
[1693681423229,4.00600841,1631.5,1631.4,5.55215404]
[1693681424232,5.60293003,1631.5,1631.4,5.55215404]
[1693681424639,9.58648581,1631.5,1631.3,3.48618459]
[1693681424844,3.30518637,1631.4,1631.3,3.56803863]
[1693681425149,3.30518637,1631.4,1631.3,6.56803863]
[1693681425301,5.60368637,1631.4,1631.3,6.56803863]
[1693681426201,5.60368637,1631.4,1631.3,3.56803863]
[1693681432177,4.00666818,1631.4,1631.3,3.56803863]
[1693681462266,5.60371728,1631.4,1631.3,3.56803863]
[1693681466267,3.30521728,1631.4,1631.3,3.56803863]
[1693681466472,3.30521728,1631.4,1631.3,8.86987704]
[1693681466681,1.60807468,1631.5,1631.3,8.86987704]
[1693681466866,1.60807468,1631.5,1631.4,6.08185404]
[1693681466867,0.64355725,1631.5,1631.4,6.08185404]
[1693681467376,1.60807468,1631.5,1631.4,6.08185404]
[1693681469483,1.60807468,1631.5,1631.4,6.96884174]
[1693681470152,3.62614611,1631.5,1631.4,6.96884174]
[1693681470352,0.96451743,1631.5,1631.4,6.96884174]
[1693681471383,1.60801794,1631.5,1631.4,6.96884174]
[1693681471985,1.60801794,1631.5,1631.4,8.53684174]
[1693681475403,3.30512919,1631.5,1631.4,8.53684174]
[1693681475598,2.24047772,1631.5,1631.4,8.53684174]
[1693681478680,3.30512919,1631.5,1631.4,8.53684174]
[1693681481517,1.70815198,1631.5,1631.4,8.53684174]
[1693681482124,1.70815198,1631.5,1631.4,7.64985404]
[1693681484527,1.60801794,1631.6,1631.4,7.64985404]
[1693681484822,1.60801794,1631.7,1631.5,1.568]
[1693681485144,0.64350051,1631.7,1631.6,4.64985404]
[1693681485452,0.64350051,1632.0,1631.8,0.6377064]
[1693681485594,0.64350051,1632.1,1631.9,3.08185404]
[1693681485920,0.64350051,1632.1,1632.0,4.568]
[1693681486079,3.30423575,1632.1,1632.0,7.64985404]
[1693681486492,1.70779087,1632.1,1632.0,7.64985404]
[1693681487715,6.18131154,1632.2,1632.0,7.64985404]
[1693681487913,6.18131154,1632.2,1632.1,3.08185404]
[1693681488115,8.84205544,1632.2,1632.1,3.08185404]
[1693681489488,5.83626133,1632.2,1632.1,3.08185404]
[1693681491421,5.83626133,1632.2,1632.1,2.44327781]
[1693681492724,8.19855493,1632.2,1632.1,2.44327781]
[1693681493229,7.12228457,1632.2,1632.1,2.44327781]
[1693681493439,4.91128457,1632.2,1632.1,2.44327781]
[1693681493603,4.91128457,1632.2,1632.1,3.14440559]
[1693681495328,6.07535894,1632.2,1632.1,3.14440559]
[1693681495631,6.07535894,1632.2,1632.1,1.30802859]
[1693681499441,6.07535894,1632.2,1632.1,1.80116146]
[1693681501861,4.9073938,1632.2,1632.1,1.80116146]
[1693681502428,4.90732447,1632.2,1632.1,1.80116146]
[1693681504459,6.0752711,1632.2,1632.1,1.80116146]
[1693681504847,0.64017246,1632.6,1632.3,3.71956044]
[1693681505054,0.4597082,1632.7,1632.5,3.71956044]
[1693681505344,0.101,1633.1,1632.9,0.6377064]
[1693681505673,1.28034493,1633.4,1632.9,0.6377064]
[1693681505830,1.28034493,1633.4,1633.3,1.568]
[1693681506035,3.62724493,1633.5,1633.3,1.568]
[1693681506246,1.28034493,1633.4,1633.3,1.568]
[1693681507778,0.13357701,1633.2,1633.1,6.3372064]
[1693681507940,0.13357701,1633.2,1633.1,12.74548108]
[1693681508139,0.13357701,1633.2,1633.1,17.92335108]
[1693681510676,0.101,1633.5,1633.1,17.92335108]
[1693681510885,0.101,1633.5,1633.4,3.08185404]
[1693681511047,0.101,1633.5,1633.4,6.08185404]
[1693681515087,0.101,1633.5,1633.4,7.64985404]
[1693681515595,0.101,1633.5,1633.4,6.51547058]
[1693681517497,0.101,1633.5,1633.2,3.0]
[1693681517800,0.41085016,1633.5,1633.3,3.08185404]
[1693681522697,0.41085016,1633.5,1633.3,1.38019665]
[1693681527431,2.10913353,1633.5,1633.3,1.38019665]
[1693681527627,1.04559446,1633.5,1633.3,1.38019665]
[1693681530304,1.06354232,1633.4,1633.2,3.0]
[1693681530523,3.94915436,1633.4,1633.1,1.39668832]
[1693681530721,2.09320206,1633.3,1633.1,3.08185404]
[1693681530917,1.02965974,1633.3,1633.1,3.08185404]
[1693681531523,1.02965974,1633.3,1633.1,2.4436823]
[1693681533435,0.6347443,1633.3,1633.1,2.4436823]
[1693681533955,3.29374615,1633.3,1633.1,2.4436823]
[1693681535503,3.29374615,1633.3,1633.1,1.30917521]
[1693681536365,4.24586261,1633.3,1633.1,1.30917521]
[1693681537375,0.6347443,1633.2,1633.1,1.30917521]
[1693681537663,1.69834409,1633.2,1633.1,1.30917521]
[1693681538661,3.29374943,1633.2,1633.1,1.30917521]
[1693681540361,4.24586589,1633.2,1633.1,1.30917521]
[1693681541220,4.24586589,1633.2,1633.1,1.79390045]
[1693681541450,3.61112159,1633.2,1633.1,1.79390045]
[1693681542450,4.8806102,1633.2,1633.1,1.79390045]
[1693681543603,6.05570037,1633.2,1633.1,1.79390045]
[1693681544449,6.37307252,1633.2,1633.1,1.79390045]
[1693681545460,4.77766718,1633.2,1633.1,1.79390045]
[1693681545660,6.37307252,1633.2,1633.1,1.79390045]
[1693681545863,1.58686076,1633.2,1633.1,1.79390045]
[1693681546077,6.37307252,1633.2,1633.1,1.79390045]
[1693681547067,1.58686076,1633.2,1633.1,1.79390045]
[1693681547602,6.37307252,1633.2,1633.1,1.79390045]
[1693681547958,1.58686076,1633.2,1633.1,1.79390045]
[1693681548280,6.37307252,1633.2,1633.1,1.79390045]
[1693681548469,6.69044468,1633.2,1633.1,1.79390045]
[1693681549898,9.34945736,1633.2,1633.1,1.79390045]
[1693681550051,6.69044468,1633.2,1633.1,1.79390045]
[1693681550695,7.00781683,1633.2,1633.1,1.79390045]
[1693681550989,9.66682951,1633.2,1633.1,1.79390045]
[1693681551294,7.00781683,1633.2,1633.1,1.79390045]
[1693681555429,4.78621176,1633.2,1633.1,0.65938928]
[1693681556518,6.71292052,1633.2,1633.1,0.65938928]
[1693681558214,5.64932073,1633.2,1633.1,0.65938928]
[1693681558419,4.78621176,1633.2,1633.1,0.65938928]
[1693681559016,3.72261197,1633.2,1633.1,0.65938928]
[1693681559342,1.60581522,1633.2,1633.1,0.65938928]
[1693681559642,6.39202698,1633.2,1633.1,0.65938928]
[1693681562213,5.63900446,1633.2,1633.1,0.48472524]